fUST/lending_fUST_20250213
["ID","MTS","AMOUNT","RATE_DAILY","PERIOD"]
[352897702,1739394635500,-436.11,0.00011506,2]
[352897704,1739394635510,-784.52277104,0.00011562,2]
[352897706,1739394635519,-500.0,0.00011643,2]
[352897708,1739394635529,-500.0,0.00011643,2]
[352897710,1739394635538,-500.0,0.00011643,2]
[352897712,1739394635549,-500.0,0.00011643,2]
[352897714,1739394635559,-500.0,0.00011643,2]
[352897715,1739394635568,-500.0,0.00011643,2]
[352897718,1739394635578,-500.0,0.00011643,2]
[352897720,1739394635588,-500.0,0.00011643,2]
[352897722,1739394635597,-500.0,0.00011643,2]
[352897724,1739394635607,-500.0,0.00011643,2]
[352897726,1739394635616,-500.0,0.00011643,2]
[352897728,1739394635625,-500.0,0.00011643,2]
[352897729,1739394635635,-500.0,0.00011643,2]
[352897731,1739394635644,-500.0,0.00011724,2]
[352897734,1739394635653,-500.0,0.0001178,2]
[352897736,1739394635663,-500.0,0.0001178,2]
[352897738,1739394635673,-500.0,0.0001178,2]
[352897739,1739394635682,-500.0,0.0001178,2]
[352897742,1739394635692,-500.0,0.0001178,2]
[352897743,1739394635701,-500.0,0.0001178,2]
[352897745,1739394635711,-500.0,0.0001178,2]
[352897760,1739394635841,-346.28886175,0.0001178,2]
[352897762,1739394635851,-229.50694155,0.0001178,2]
[352897764,1739394635860,-500.0,0.00011917,2]
[352897767,1739394635870,-500.0,0.00011917,2]
[352897768,1739394635879,-500.0,0.00011917,2]
[352897771,1739394635889,-500.0,0.00011917,2]
[352897773,1739394635899,-500.0,0.00011917,2]
[352897775,1739394635910,-222.15,0.00011917,2]
[352897777,1739394635920,-500.0,0.00011917,2]
[352897779,1739394635930,-420.0,0.00012033,2]
[352897781,1739394635940,-500.0,0.00012054,2]
[352897783,1739394635950,-500.0,0.00012054,2]
[352897785,1739394635959,-500.0,0.00012054,2]
[352897787,1739394635968,-500.0,0.00012054,2]
[352897789,1739394635977,-500.0,0.00012054,2]
[352897791,1739394635986,-594.2,0.00012054,2]
[352897793,1739394635996,-500.0,0.00012191,2]
[352897795,1739394636005,-203.01,0.00012191,2]
[352897797,1739394636015,-500.0,0.00012191,2]
[352897799,1739394636024,-500.0,0.00012191,2]
[352897801,1739394636034,-500.0,0.00012328,2]
[352897803,1739394636044,-500.0,0.00012328,2]
[352897805,1739394636054,-638.44,0.00012328,2]
[352897807,1739394636063,-500.0,0.00012465,2]
[352897809,1739394636072,-500.0,0.00012465,2]
[352897810,1739394636082,-263.9,0.00012602,2]
[352897812,1739394636091,-500.0,0.00012602,2]
[352897814,1739394636100,-500.0,0.00012739,2]
[352897816,1739394636110,-500.0,0.00012876,2]
[352897818,1739394636119,-191.92588941,0.000129,2]
[352897820,1739394636129,-500.0,0.00013013,2]
[352897822,1739394636138,-500.0,0.0001315,2]
[352897824,1739394636149,-587.0,0.00013223,2]
[352897826,1739394636159,-500.0,0.00013287,2]
[352897828,1739394636169,-500.0,0.00013408,2]
[352897830,1739394636179,-541.92532704,0.00013424,2]
[352897832,1739394636189,-228.075596,0.00013699,2]
[352897834,1739394636199,-169.0838119,0.00013699,2]
[352897836,1739394636209,-152.0,0.00013708,2]
[352897838,1739394636219,-228.753,0.00014092,2]
[352897840,1739394636229,-823.0,0.00014532,2]
[352897842,1739394636239,-9351.7799312,0.00014885,2]
[352897845,1739394636250,-309.0,0.00015,5]
[352897846,1739394636259,-166.0,0.00015068,2]
[352897848,1739394636268,-472.95660423,0.00015166,2]
[352897850,1739394636278,-2015.93,0.000154,2]
[352897852,1739394636288,-803.9837216,0.00015663,2]
[352897854,1739394636300,-160.0,0.00015837,3]
[352897856,1739394636310,-396.0,0.00015893,2]
[352897858,1739394636320,-465.39783021,0.00015924,2]
[352897860,1739394636329,-1152.0,0.0001597,2]
[352897862,1739394636341,-3000.0,0.00016,2]
[352897864,1739394636351,-3000.0,0.0001601,2]
[352897866,1739394636362,-3000.0,0.0001602,2]
[352897868,1739394636374,-160.0,0.00016027,4]
[352897870,1739394636385,-3000.0,0.0001603,2]
[352897871,1739394636395,-3000.0,0.0001604,2]
[352897872,1739394636404,-3000.0,0.0001605,2]
[352897873,1739394636414,-3000.0,0.0001606,2]
[352897874,1739394636424,-3000.0,0.0001607,2]
[352897875,1739394636434,-3000.0,0.0001608,2]
[352897876,1739394636444,-3000.0,0.0001609,2]
[352897877,1739394636454,-3000.0,0.000161,2]
[352897878,1739394636463,-3000.0,0.0001611,2]
[352897879,1739394636472,-3000.0,0.0001612,2]
[352897880,1739394636483,-3000.0,0.0001613,2]
[352897881,1739394636494,-3000.0,0.0001614,2]
[352897883,1739394636503,-500.0,0.00016148,2]
[352897884,1739394636513,-3000.0,0.0001615,2]
[352897886,1739394636523,-3000.0,0.0001616,2]
[352897888,1739394636532,-608.46,0.00016164,2]
[352897890,1739394636541,-3000.0,0.0001617,2]
[352897892,1739394636551,-3000.0,0.0001618,2]
[352897894,1739394636560,-3000.0,0.0001619,2]
[352897896,1739394636569,-151.0,0.000162,2]
[352897898,1739394636578,-3000.0,0.000162,2]
[352897900,1739394636588,-3000.0,0.0001621,2]
[352897902,1739394636597,-160.0,0.00016216,5]
[352897904,1739394636606,-3000.0,0.0001622,2]
[352897906,1739394636616,-3000.0,0.0001623,2]
[352897908,1739394636625,-3000.0,0.0001624,2]
[352897910,1739394636635,-351.9813497,0.00016247,2]
[352897912,1739394636644,-3000.0,0.0001625,2]
[352897914,1739394636653,-3000.0,0.0001626,2]
[352897916,1739394636663,-3000.0,0.0001627,2]
[352897918,1739394636673,-3000.0,0.0001628,2]
[352897920,1739394636682,-3000.0,0.0001629,2]
[352897922,1739394636691,-3000.0,0.000163,2]
[352897924,1739394636700,-3000.0,0.0001631,2]
[352897926,1739394636710,-3000.0,0.0001632,2]
[352897928,1739394636720,-3000.0,0.0001633,2]
[352897930,1739394636730,-3000.0,0.0001634,2]
[352897932,1739394636739,-3000.0,0.0001635,2]
[352897934,1739394636748,-3000.0,0.0001636,2]
[352897936,1739394636757,-500.0,0.00016369,2]
[352897938,1739394636766,-500.0,0.00016369,2]
[352897940,1739394636775,-260.91150524,0.00016369,2]
[352897942,1739394636785,-500.0,0.00016369,2]
[352897944,1739394636794,-500.0,0.00016369,2]
[352897946,1739394636803,-3000.0,0.0001637,2]
[352897948,1739394636813,-461.5,0.00016378,2]
[352897950,1739394636823,-3000.0,0.0001638,2]
[352897952,1739394636833,-279.431,0.00016383,2]
[352897954,1739394636842,-2293.0,0.00016383,2]
[352897956,1739394636851,-153.0,0.00016384,2]
[352897958,1739394636860,-153.0,0.00016384,2]
[352897960,1739394636870,-3000.0,0.0001639,2]
[352897962,1739394636880,-3000.0,0.000164,2]
[352897964,1739394636890,-160.0,0.00016406,6]
[352897966,1739394636899,-3000.0,0.0001641,2]
[352897968,1739394636908,-3000.0,0.0001642,2]
[352897970,1739394636918,-3000.0,0.0001643,2]
[352897972,1739394636927,-188.0,0.00016438,2]
[352897974,1739394636937,-188.0,0.00016438,2]
[352897976,1739394636946,-188.0,0.00016438,2]
[352897978,1739394636956,-188.0,0.00016438,2]
[352897980,1739394636965,-188.0,0.00016438,2]
[352897982,1739394636974,-188.0,0.00016438,2]
[352897984,1739394636983,-188.0,0.00016438,2]
[352897986,1739394636993,-188.0,0.00016438,2]
[352897988,1739394637002,-188.0,0.00016438,2]
[352897990,1739394637013,-188.0,0.00016438,2]
[352897992,1739394637022,-153.03359446,0.00016438,2]
[352897994,1739394637032,-500.0,0.00016438,2]
[352897996,1739394637041,-3000.0,0.0001644,2]
[352897998,1739394637051,-3478.105511,0.0001645,2]
[352898000,1739394637060,-154.6337486,0.00016478,2]
[352898002,1739394637069,-306.0,0.00016493,2]
[352898004,1739394637079,-309.0,0.000165,6]
[352898006,1739394637088,-151.0,0.00016534,2]
[352898008,1739394637098,-600.0,0.00016554,2]
[352898010,1739394637108,-168.41666136,0.00016575,2]
[352898012,1739394637118,-160.0,0.00016596,7]
[352898014,1739394637127,-151.0,0.000166,2]
[352898016,1739394637137,-1000.0,0.000167,2]
[352898018,1739394637147,-600.0,0.00016727,2]
[352898020,1739394637157,-1973.42659317,0.00016742,2]
[352898030,1739394637244,-473.74788141,0.00016742,2]
[352898032,1739394637256,-338.09360339,0.00016742,2]
[352898034,1739394637267,-10483.99447686,0.00016742,2]
[352898036,1739394637277,-1899.84300515,0.00016755,2]
[352898038,1739394637290,-600.15699485,0.00016755,2]
[352898040,1739394637301,-2500.0,0.00016764,2]
[352898042,1739394637311,-886.20214254,0.00016772,2]
[352898044,1739394637322,-460.6132283,0.00016772,2]
[352898046,1739394637335,-1153.18462916,0.00016772,2]
[352898049,1739394637344,-2500.0,0.00016772,2]
[352898050,1739394637355,-2500.0,0.00016781,2]
[352898052,1739394637366,-2500.0,0.00016781,2]
[352898055,1739394637376,-160.0,0.00016785,8]
[352898057,1739394637385,-2500.0,0.0001679,2]
[352898059,1739394637395,-600.44121308,0.0001679,2]
[352898061,1739394637404,-2500.0,0.0001679,2]
[352898062,1739394637414,-1000.0,0.000168,2]
[352898064,1739394637423,-1023.52806974,0.00016899,2]
[352898066,1739394637433,-151.0,0.000169,2]
[352898068,1739394637442,-1000.0,0.000169,2]
[352898070,1739394637452,-160.0,0.00016958,2]
[352898073,1739394637461,-160.0,0.00016958,2]
[352898075,1739394637471,-160.0,0.00016958,2]
[352898077,1739394637481,-160.0,0.00016958,2]
[352898078,1739394637491,-160.0,0.00016958,2]
[352898081,1739394637501,-160.0,0.00016958,2]
[352898082,1739394637511,-160.0,0.00016958,2]
[352898084,1739394637522,-156.0,0.00016958,2]
[352898086,1739394637531,-160.0,0.00016958,2]
[352898088,1739394637540,-156.0,0.00016958,2]
[352898090,1739394637549,-156.0,0.00016958,2]
[352898092,1739394637558,-160.0,0.00016958,2]
[352898094,1739394637568,-156.0,0.00016958,2]
[352898096,1739394637578,-166.58,0.00016958,2]
[352898098,1739394637587,-160.45,0.00016958,2]
[352898100,1739394637597,-160.0,0.00016975,9]
[352898102,1739394637606,-500.0,0.00016986,3]
[352898104,1739394637615,-8190.02450011,0.00016988,2]
[352898106,1739394637627,-1004.25000015,0.00016988,2]
[352898109,1739394637639,-1000.0,0.00016988,2]
[352898206,1739394638545,-500.0,0.00010958,2]
[352898208,1739394638555,-500.0,0.00010958,2]
[352898210,1739394638565,-500.0,0.00011095,2]
[352898212,1739394638575,-500.0,0.00011232,2]
[352898214,1739394638584,-500.0,0.00011369,2]
[352898216,1739394638593,-421.3,0.00011506,2]
[352898218,1739394638605,-78.7,0.00011506,2]
[352898220,1739394638614,-500.0,0.00011643,2]
[352898222,1739394638624,-500.0,0.0001178,2]
[352898224,1739394638633,-12415.83659097,0.00016988,2]
[352898226,1739394638642,-1000.0,0.00017,2]
[352898228,1739394638651,-189.0,0.00017,2]
[352898230,1739394638661,-157.27,0.00017,31]
[352898232,1739394638670,-157.27,0.00017,31]
[352898234,1739394638679,-157.27,0.00017,31]
[352898236,1739394638689,-157.27,0.00017,31]
[352898238,1739394638698,-157.27,0.00017,31]
[352898240,1739394638707,-157.27,0.00017,31]
[352898242,1739394638716,-1624.94268916,0.00017,2]
[352898244,1739394638725,-250.0,0.0001703,2]
[352898246,1739394638734,-191.92588941,0.00017058,2]
[352898249,1739394638743,-172.5364728,0.00017071,2]
[352898252,1739394638752,-2000.0,0.000171,2]
[352898255,1739394638762,-2000.0,0.000171,2]
[352898257,1739394638771,-151.0,0.000171,2]
[352898259,1739394638780,-1000.0,0.000171,4]
[352898261,1739394638789,-189.25,0.000171,2]
[352898263,1739394638798,-3000.0,0.00017101,2]
[352898265,1739394638808,-228.075596,0.00017123,2]
[352898267,1739394638817,-316.0,0.0001715,2]
[352898269,1739394638826,-305.046349,0.00017155,2]
[352898271,1739394638835,-151.0,0.00017155,2]
[352898273,1739394638844,-151.0,0.00017155,2]
[352898275,1739394638854,-151.0,0.00017155,2]
[352898277,1739394638863,-151.0,0.00017155,2]
[352898289,1739394638872,-211.81544,0.00017155,2]
[352898291,1739394638977,-211.81544,0.00017155,2]
[352898293,1739394638987,-211.81544,0.00017155,2]
[352898295,1739394638996,-211.81544,0.00017155,2]
[352898297,1739394639005,-211.81544,0.00017155,2]
[352898299,1739394639014,-211.81544,0.00017155,2]
[352898301,1739394639023,-211.81544,0.00017155,2]
[352898303,1739394639033,-211.81544,0.00017155,2]
[352898305,1739394639043,-211.81544,0.00017155,2]
[352898307,1739394639053,-211.81544,0.00017155,2]
[352898309,1739394639062,-211.81544,0.00017155,2]
[352898311,1739394639072,-211.81544,0.00017155,2]
[352898313,1739394639082,-211.81544,0.00017155,2]
[352898315,1739394639091,-211.81544,0.00017155,2]
[352898317,1739394639100,-211.81544,0.00017155,2]
[352898319,1739394639110,-211.81544,0.00017155,2]
[352898321,1739394639119,-151.0,0.00017155,2]
[352898323,1739394639129,-151.0,0.00017155,2]
[352898325,1739394639138,-151.0,0.00017155,2]
[352898327,1739394639148,-151.0,0.00017155,2]
[352898329,1739394639157,-151.0,0.00017155,2]
[352898331,1739394639166,-151.0,0.00017155,2]
[352898333,1739394639175,-151.0,0.00017155,2]
[352898335,1739394639185,-151.0,0.00017155,2]
[352898337,1739394639195,-151.0,0.00017155,2]
[352898340,1739394639205,-151.0,0.00017155,2]
[352898342,1739394639214,-151.0,0.00017155,2]
[352898343,1739394639224,-151.0,0.00017155,2]
[352898345,1739394639234,-151.0,0.00017155,2]
[352898347,1739394639243,-151.0,0.00017155,2]
[352898349,1739394639252,-151.0,0.00017155,2]
[352898351,1739394639261,-151.0,0.00017155,2]
[352898353,1739394639271,-151.0,0.00017155,2]
[352898355,1739394639280,-151.0,0.00017155,2]
[352898357,1739394639290,-151.0,0.00017155,2]
[352898359,1739394639303,-151.0,0.00017155,2]
[352898361,1739394639313,-151.0,0.00017155,2]
[352898363,1739394639323,-151.0,0.00017155,2]
[352898365,1739394639332,-151.0,0.00017155,2]
[352898367,1739394639343,-151.0,0.00017155,2]
[352898369,1739394639353,-151.0,0.00017155,2]
[352898371,1739394639362,-575.538091,0.00017155,2]
[352898373,1739394639372,-575.538091,0.00017155,2]
[352898375,1739394639383,-575.538091,0.00017155,2]
[352898377,1739394639392,-575.538091,0.00017155,2]
[352898380,1739394639402,-575.538091,0.00017155,2]
[352898381,1739394639411,-151.0,0.00017155,2]
[352898383,1739394639421,-151.0,0.00017155,2]
[352898385,1739394639430,-151.0,0.00017155,2]
[352898388,1739394639440,-151.0,0.00017155,2]
[352898390,1739394639449,-151.0,0.00017155,2]
[352898392,1739394639458,-241.689482,0.00017155,2]
[352898393,1739394639468,-254.958808,0.00017155,2]
[352898395,1739394639477,-151.0,0.00017155,2]
[352898397,1739394639486,-282.978656,0.00017155,2]
[352898399,1739394639496,-151.0,0.00017155,2]
[352898402,1739394639506,-151.0,0.00017155,2]
[352898403,1739394639515,-151.0,0.00017156,2]
[352898405,1739394639525,-151.0,0.00017156,2]
[352898407,1739394639534,-218.741034,0.00017156,2]
[352898409,1739394639543,-551.9265,0.00017156,2]
[352898411,1739394639552,-551.9265,0.00017156,2]
[352898413,1739394639561,-551.9265,0.00017156,2]
[352898415,1739394639572,-551.9265,0.00017156,2]
[352898418,1739394639582,-551.9265,0.00017156,2]
[352898420,1739394639591,-551.9265,0.00017156,2]
[352898422,1739394639601,-551.9265,0.00017156,2]
[352898424,1739394639612,-551.9265,0.00017156,2]
[352898426,1739394639622,-551.9265,0.00017156,2]
[352898428,1739394639631,-551.9265,0.00017156,2]
[352898430,1739394639641,-551.9265,0.00017156,2]
[352898432,1739394639652,-551.9265,0.00017156,2]
[352898434,1739394639662,-551.9265,0.00017156,2]
[352898436,1739394639671,-551.9265,0.00017156,2]
[352898438,1739394639681,-551.9265,0.00017156,2]
[352898440,1739394639691,-27.61056634,0.00017156,2]
[352898442,1739394639704,-524.31593366,0.00017156,2]
[352898444,1739394639714,-151.0,0.00017156,2]
[352898446,1739394639724,-151.0,0.00017156,2]
[352898448,1739394639733,-151.0,0.00017156,2]
[352898450,1739394639743,-151.0,0.00017156,2]
[352898453,1739394639753,-151.0,0.00017156,2]
[352898454,1739394639763,-256.401971,0.00017156,2]
[352898457,1739394639772,-256.401971,0.00017156,2]
[352898459,1739394639782,-256.401971,0.00017156,2]
[352898460,1739394639791,-256.401971,0.00017156,2]
[352898462,1739394639801,-256.401971,0.00017156,2]
[352898464,1739394639811,-256.401971,0.00017156,2]
[352898466,1739394639821,-256.401971,0.00017156,2]
[352898469,1739394639831,-256.401971,0.00017156,2]
[352898470,1739394639840,-256.401971,0.00017156,2]
[352898473,1739394639850,-256.401971,0.00017156,2]
[352898475,1739394639860,-256.401971,0.00017156,2]
[352898476,1739394639870,-256.401971,0.00017156,2]
[352898478,1739394639879,-256.401971,0.00017156,2]
[352898480,1739394639888,-256.401971,0.00017156,2]
[352898482,1739394639898,-256.401971,0.00017156,2]
[352898484,1739394639907,-256.401971,0.00017156,2]
[352898486,1739394639916,-151.0,0.00017156,2]
[352898488,1739394639926,-151.0,0.00017156,2]
[352898490,1739394639935,-151.0,0.00017156,2]
[352898492,1739394639944,-151.0,0.00017156,2]
[352898494,1739394639954,-206.635605,0.00017156,2]
[352898496,1739394639966,-151.0,0.00017156,2]
[352898498,1739394639975,-340.517309,0.00017156,2]
[352898500,1739394639985,-340.517309,0.00017156,2]
[352898502,1739394639995,-340.517309,0.00017156,2]
[352898504,1739394640005,-340.517309,0.00017156,2]
[352898507,1739394640014,-340.517309,0.00017156,2]
[352898509,1739394640024,-340.517309,0.00017156,2]
[352898511,1739394640034,-340.517309,0.00017156,2]
[352898513,1739394640043,-340.517309,0.00017156,2]
[352898514,1739394640053,-340.517309,0.00017156,2]
[352898516,1739394640063,-340.517309,0.00017156,2]
[352898519,1739394640074,-340.517309,0.00017156,2]
[352898522,1739394640083,-340.517309,0.00017156,2]
[352898524,1739394640093,-340.517309,0.00017156,2]
[352898525,1739394640102,-340.517309,0.00017156,2]
[352898526,1739394640112,-340.517309,0.00017156,2]
[352898527,1739394640121,-340.517309,0.00017156,2]
[352898528,1739394640132,-289.794032,0.00017156,2]
[352898529,1739394640141,-289.794032,0.00017156,2]
[352898530,1739394640151,-289.794032,0.00017156,2]
[352898531,1739394640161,-289.794032,0.00017156,2]
[352898532,1739394640170,-289.794032,0.00017156,2]
[352898533,1739394640179,-289.794032,0.00017156,2]
[352898534,1739394640189,-289.794032,0.00017156,2]
[352898536,1739394640198,-289.794032,0.00017156,2]
[352898537,1739394640208,-289.794032,0.00017156,2]
[352898538,1739394640217,-289.794032,0.00017156,2]
[352898540,1739394640226,-289.794032,0.00017156,2]
[352898541,1739394640236,-289.794032,0.00017156,2]
[352898543,1739394640245,-289.794032,0.00017156,2]
[352898546,1739394640255,-289.794032,0.00017156,2]
[352898547,1739394640264,-289.794032,0.00017156,2]
[352898549,1739394640274,-289.794032,0.00017156,2]
[352898552,1739394640284,-151.0,0.00017156,2]
[352898554,1739394640295,-151.0,0.00017156,2]
[352898556,1739394640305,-151.0,0.00017156,2]
[352898558,1739394640315,-151.0,0.00017156,2]
[352898560,1739394640326,-151.0,0.00017156,2]
[352898561,1739394640336,-151.0,0.00017156,2]
[352898563,1739394640345,-151.0,0.00017156,2]
[352898565,1739394640354,-481.198712,0.00017156,2]
[352898567,1739394640365,-151.0,0.00017156,2]
[352898570,1739394640375,-481.198712,0.00017156,2]
[352898572,1739394640386,-481.198712,0.00017156,2]
[352898574,1739394640396,-481.198712,0.00017156,2]
[352898576,1739394640406,-481.198712,0.00017156,2]
[352898578,1739394640415,-481.198712,0.00017156,2]
[352898579,1739394640426,-481.198712,0.00017156,2]
[352898581,1739394640436,-481.198712,0.00017156,2]
[352898583,1739394640447,-481.198712,0.00017156,2]
[352898586,1739394640457,-481.198712,0.00017156,2]
[352898587,1739394640466,-481.198712,0.00017156,2]
[352898589,1739394640477,-481.198712,0.00017156,2]
[352898591,1739394640486,-141.16192357,0.00017156,2]
[352898594,1739394640501,-340.03678843,0.00017156,2]
[352898596,1739394640510,-481.198712,0.00017156,2]
[352898598,1739394640520,-481.198712,0.00017156,2]
[352898600,1739394640530,-481.198712,0.00017156,2]
[352898602,1739394640540,-200.729055,0.00017156,2]
[352898604,1739394640548,-200.729055,0.00017156,2]
[352898606,1739394640557,-200.729055,0.00017156,2]
[352898607,1739394640567,-200.729055,0.00017156,2]
[352898609,1739394640578,-200.729055,0.00017156,2]
[352898611,1739394640588,-200.729055,0.00017156,2]
[352898613,1739394640597,-288.994636,0.00017156,2]
[352898615,1739394640607,-151.0,0.00017156,2]
[352898616,1739394640616,-151.0,0.00017156,2]
[352898618,1739394640625,-1500.0,0.00017156,7]
[352898620,1739394640635,-1500.0,0.00017156,7]
[352898622,1739394640644,-1500.0,0.00017156,7]
[352898624,1739394640655,-1500.0,0.00017156,7]
[352898626,1739394640665,-1500.0,0.00017156,7]
[352898628,1739394640674,-1500.0,0.00017156,7]
[352898630,1739394640683,-1500.0,0.00017156,7]
[352898632,1739394640693,-1500.0,0.00017156,7]
[352898634,1739394640702,-1500.0,0.00017156,7]
[352898636,1739394640711,-1190.32428088,0.00017156,7]
[352898642,1739394640764,-177.23,0.00011917,2]
[352898644,1739394640773,-309.67571912,0.00017156,7]
[352898645,1739394640782,-1500.0,0.00017156,7]
[352898647,1739394640792,-1500.0,0.00017156,7]
[352898649,1739394640801,-1500.0,0.00017156,7]
[352898652,1739394640812,-1500.0,0.00017156,7]
[352898653,1739394640821,-1500.0,0.00017156,7]
[352898655,1739394640831,-1500.0,0.00017156,7]
[352898657,1739394640840,-1500.0,0.00017156,7]
[352898659,1739394640850,-1500.0,0.00017156,7]
[352898661,1739394640860,-1500.0,0.00017156,7]
[352898663,1739394640870,-1500.0,0.00017156,7]
[352898665,1739394640879,-1500.0,0.00017156,7]
[352898667,1739394640889,-1500.0,0.00017156,7]
[352898669,1739394640898,-1500.0,0.00017156,7]
[352898671,1739394640908,-1500.0,0.00017156,7]
[352898673,1739394640918,-1500.0,0.00017156,7]
[352898675,1739394640928,-1500.0,0.00017156,7]
[352898677,1739394640938,-1500.0,0.00017156,7]
[352898679,1739394640948,-1500.0,0.00017156,7]
[352898681,1739394640956,-786.44602,0.00017156,7]
[352898683,1739394640965,-1231.561486,0.00017156,2]
[352898684,1739394640975,-1231.561486,0.00017156,2]
[352898686,1739394640984,-1231.561486,0.00017156,2]
[352898688,1739394640994,-1231.561486,0.00017156,2]
[352898690,1739394641004,-1231.561486,0.00017156,2]
[352898692,1739394641013,-1231.561486,0.00017156,2]
[352898694,1739394641023,-1231.561486,0.00017156,2]
[352898697,1739394641032,-1231.561486,0.00017156,2]
[352898699,1739394641042,-1231.561486,0.00017156,2]
[352898701,1739394641051,-1231.561486,0.00017156,2]
[352898703,1739394641060,-1231.561486,0.00017156,2]
[352898704,1739394641070,-1231.561486,0.00017156,2]
[352898706,1739394641080,-1231.561486,0.00017156,2]
[352898708,1739394641090,-1231.561486,0.00017156,2]
[352898710,1739394641100,-1231.561486,0.00017156,2]
[352898712,1739394641109,-724.046257,0.00017156,2]
[352898714,1739394641119,-1231.561486,0.00017156,2]
[352898716,1739394641129,-151.0,0.00017156,2]
[352898718,1739394641139,-724.046257,0.00017156,2]
[352898720,1739394641148,-724.046257,0.00017156,2]
[352898722,1739394641158,-151.0,0.00017156,2]
[352898724,1739394641167,-724.046257,0.00017156,2]
[352898725,1739394641177,-724.046257,0.00017156,2]
[352898726,1739394641186,-724.046257,0.00017156,2]
[352898727,1739394641196,-151.0,0.00017156,2]
[352898729,1739394641205,-724.046257,0.00017156,2]
[352898731,1739394641215,-724.046257,0.00017156,2]
[352898739,1739394641317,-151.0,0.00017156,2]
[352898740,1739394641328,-151.0,0.00017156,2]
[352898741,1739394641339,-151.0,0.00017156,2]
[352898742,1739394641349,-724.046257,0.00017156,2]
[352898743,1739394641360,-724.046257,0.00017156,2]
[352898744,1739394641372,-724.046257,0.00017156,2]
[352898745,1739394641383,-153.286834,0.00017156,2]
[352898746,1739394641392,-724.046257,0.00017156,2]
[352898747,1739394641401,-724.046257,0.00017156,2]
[352898748,1739394641411,-153.286834,0.00017156,2]
[352898749,1739394641421,-724.046257,0.00017156,2]
[352898750,1739394641430,-153.286834,0.00017156,2]
[352898751,1739394641440,-724.046257,0.00017156,2]
[352898752,1739394641449,-153.286834,0.00017156,2]
[352898753,1739394641459,-151.0,0.00017156,2]
[352898754,1739394641469,-724.046257,0.00017156,2]
[352898755,1739394641480,-153.286834,0.00017156,2]
[352898756,1739394641490,-151.0,0.00017156,2]
[352898757,1739394641499,-153.286834,0.00017156,2]
[352898758,1739394641509,-151.0,0.00017156,2]
[352898759,1739394641518,-153.286834,0.00017156,2]
[352898760,1739394641528,-151.0,0.00017156,2]
[352898761,1739394641537,-153.286834,0.00017156,2]
[352898762,1739394641548,-151.0,0.00017156,2]
[352898763,1739394641557,-153.286834,0.00017156,2]
[352898764,1739394641566,-153.286834,0.00017156,2]
[352898765,1739394641575,-153.286834,0.00017156,2]
[352898766,1739394641584,-153.286834,0.00017156,2]
[352898767,1739394641594,-153.286834,0.00017156,2]
[352898768,1739394641604,-153.286834,0.00017156,2]
[352898769,1739394641614,-153.286834,0.00017156,2]
[352898770,1739394641623,-153.286834,0.00017156,2]
[352898771,1739394641632,-151.0,0.00017156,2]
[352898772,1739394641642,-151.0,0.00017156,2]
[352898773,1739394641652,-151.0,0.00017156,2]
[352898774,1739394641662,-151.0,0.00017156,2]
[352898775,1739394641672,-151.0,0.00017156,2]